bitfinex/quotes_ETHUSD_20240707
["timestamp","ask_amount","ask_price","bid_price","bid_amount"]
[1720378125544,1.39776392,2996.5,2996.4,0.935]
[1720378125740,4.0109717,2996.5,2996.4,0.935]
[1720378126965,4.01097313,2996.5,2996.4,0.935]
[1720378128321,2.55405118,2996.5,2996.4,0.935]
[1720378128655,4.01097385,2996.5,2996.4,0.935]
[1720378131735,1.39776392,2996.5,2996.4,0.935]
[1720378131930,4.01095487,2996.5,2996.4,0.935]
[1720378134220,2.61319095,2996.5,2996.4,0.935]
[1720378134420,4.01115249,2996.5,2996.4,0.935]
[1720378135121,1.74767788,2996.6,2996.4,0.935]
[1720378135326,2.61318973,2996.5,2996.4,0.935]
[1720378135628,2.61318487,2996.5,2996.4,0.935]
[1720378136526,4.36086685,2996.5,2996.4,0.935]
[1720378136749,4.36087686,2996.5,2996.4,0.935]
[1720378138427,3.34919595,2996.7,2996.4,0.935]
[1720378138758,3.0,2996.3,2996.0,2.3615]
[1720378138935,1.45691708,2996.2,2996.0,2.3615]
[1720378139135,1.45691708,2996.2,2996.1,0.935]
[1720378140377,4.36242635,2996.2,2995.5,4.82458]
[1720378140672,1.39909917,2995.9,2995.5,2.4878]
[1720378140876,1.39909917,2995.9,2994.6,12.23]
[1720378140877,4.39897513,2995.7,2995.0,2.4878]
[1720378141082,4.39897513,2995.7,2995.6,0.935]
[1720378141237,5.61405201,2995.7,2995.6,0.935]
[1720378141579,9.33833873,2995.7,2995.6,0.935]
[1720378141750,5.61405201,2995.7,2995.6,0.935]
[1720378144195,4.45739183,2995.7,2995.6,0.935]
[1720378144490,7.3585236,2995.7,2995.6,0.935]
[1720378144708,7.35841252,2995.7,2995.6,0.935]
[1720378145814,7.35841292,2995.7,2995.6,0.935]
[1720378146189,5.61426345,2995.7,2995.6,0.935]
[1720378146383,7.35841292,2995.7,2995.6,0.935]
[1720378146902,5.61426345,2995.7,2995.6,0.935]
[1720378147221,7.00822811,2995.7,2995.6,0.935]
[1720378147423,7.00823569,2995.7,2995.6,0.935]
[1720378147603,3.0,2995.1,2994.8,2.4859]
[1720378147914,3.0,2995.1,2995.0,0.935]
[1720378152017,2.3888,2995.5,2994.6,2.4859]
[1720378152018,3.0,2994.8,2994.6,2.4859]
[1720378152220,3.0,2994.8,2994.7,0.935]
[1720378154199,3.0,2994.8,2994.6,2.4859]
[1720378154634,3.0,2994.8,2994.7,0.935]
[1720378161509,3.0,2994.8,2994.5,2.33757]
[1720378161673,3.0,2994.8,2994.7,0.935]
[1720378162697,3.0,2994.8,2994.5,4.67514]
[1720378162890,3.0,2994.8,2994.7,0.935]
[1720378163209,3.0,2994.8,2994.5,2.33757]
[1720378163420,3.0,2994.8,2994.7,0.935]
[1720378170069,3.0,2994.8,2994.5,2.33756]
[1720378170374,3.0,2994.8,2994.7,0.935]
[1720378171273,3.0,2994.8,2994.5,2.33756]
[1720378171427,3.0,2994.5,2994.3,4.6995]
[1720378171626,3.0,2994.5,2994.4,3.27269]
[1720378172889,3.0,2994.5,2994.4,0.935]
[1720378175653,3.0,2994.5,2994.1,0.00625935]
[1720378175982,3.0,2994.5,2994.4,0.935]
[1720378176194,4.15703337,2994.5,2994.4,0.935]
[1720378176953,4.15703337,2994.5,2994.1,2.34415935]
[1720378177261,3.0,2994.5,2994.4,0.935]
[1720378177469,4.15703675,2994.5,2994.4,0.935]
[1720378178480,4.15698657,2994.5,2994.4,3.2915]
[1720378178656,3.0,2994.5,2994.4,5.62919]
[1720378180581,4.15698791,2994.5,2994.4,5.62919]
[1720378180780,4.15698791,2994.5,2994.4,3.27269]
[1720378182152,4.15698791,2994.5,2994.4,0.935]
[1720378183604,4.15705556,2994.5,2994.4,0.935]
[1720378185204,7.00477587,2994.5,2994.4,0.935]
[1720378185611,5.61492967,2994.5,2994.4,0.935]
[1720378185969,7.00477587,2994.5,2994.4,0.935]
[1720378186808,5.84772031,2994.5,2994.4,0.935]
[1720378187010,7.01092511,2994.5,2994.4,0.935]
[1720378187391,7.01092306,2994.5,2994.4,0.935]
[1720378189126,7.01092306,2994.5,2994.2,2.33785]
[1720378189427,4.39600884,2994.5,2994.4,0.935]
[1720378189587,7.01094132,2994.5,2994.4,0.935]
[1720378190200,4.39600884,2994.5,2994.4,0.935]
[1720378190401,7.0109398,2994.5,2994.4,0.935]
[1720378191197,5.61493096,2994.5,2994.4,0.935]
[1720378192283,7.36051359,2994.5,2994.4,0.935]
[1720378192985,7.01213457,2994.5,2994.4,0.935]
[1720378193180,5.61493096,2994.5,2994.4,0.935]
[1720378193611,5.61493928,2994.5,2994.4,0.935]
[1720378195111,7.36162897,2994.5,2994.4,0.935]
[1720378195307,5.61493928,2994.5,2994.4,0.935]
[1720378196115,3.0,2994.2,2994.1,0.00625935]
[1720378196317,4.4578865,2994.2,2994.1,0.94125935]
[1720378196525,5.61494746,2994.2,2994.1,0.94125935]
[1720378197046,5.61497038,2994.2,2994.1,0.94125935]
[1720378197204,4.15706654,2994.2,2994.1,0.94125935]
[1720378197409,5.61498494,2994.2,2994.1,0.94125935]
[1720378198118,7.01251632,2994.2,2994.1,0.94125935]
[1720378198644,7.01267915,2994.2,2994.1,0.94125935]
[1720378200247,3.0,2994.2,2994.1,0.94125935]
[1720378200453,7.01219843,2994.2,2994.1,0.94125935]
[1720378200748,7.01219843,2994.2,2994.1,0.00625935]
[1720378200902,7.01219843,2994.2,2994.1,0.94125935]
[1720378201951,7.36146094,2994.2,2994.1,0.94125935]
[1720378202643,4.15719741,2994.2,2994.1,0.94125935]
[1720378202849,7.36151367,2994.2,2994.1,0.94125935]
[1720378203754,7.01193962,2994.2,2994.1,0.94125935]
[1720378206046,7.01188059,2994.2,2994.1,0.94125935]
[1720378206550,7.01187876,2994.2,2994.1,0.94125935]
[1720378207841,5.61520529,2994.2,2994.1,3.35125935]
[1720378208147,4.45803481,2994.2,2994.1,4.15398529]
[1720378208808,4.45803481,2994.2,2994.1,6.49191529]
[1720378209308,4.45793002,2994.2,2994.1,6.49191529]
[1720378209710,4.39667347,2994.5,2994.2,2.33785]
[1720378209969,2.61482679,2994.4,2994.3,4.74777]
[1720378210167,1.45782379,2994.4,2994.3,5.68277]
[1720378210377,2.61481992,2994.4,2994.3,5.68277]
[1720378210540,4.01149339,2994.4,2994.3,5.68277]
[1720378210877,4.01149339,2994.4,2994.3,4.74777]
[1720378211075,4.01149339,2994.4,2994.3,5.68277]
[1720378212455,1.39667347,2994.4,2994.3,5.68277]
[1720378212649,4.01157009,2994.4,2994.3,5.68277]
[1720378215681,1.39667347,2994.4,2994.3,5.68277]
[1720378215844,4.01155752,2994.4,2994.3,5.68277]
[1720378216040,1.39667347,2994.4,2994.3,5.68277]
[1720378216280,4.01154051,2994.4,2994.3,5.68277]
[1720378216657,4.01154051,2994.4,2994.1,0.00625935]
[1720378216854,1.45784623,2994.3,2994.1,0.00625935]
[1720378217068,2.85487225,2994.3,2994.2,3.27284]
[1720378217279,4.01193686,2994.3,2994.2,3.27284]
[1720378217586,2.85487225,2994.3,2994.2,3.27284]
[1720378217751,4.01193525,2994.3,2994.2,3.27284]
[1720378219050,1.39727079,2994.3,2994.2,3.27284]
[1720378219272,1.45789117,2994.3,2994.2,3.27284]
[1720378220279,2.85516196,2994.3,2994.2,3.27284]
[1720378220487,1.45789117,2994.3,2994.2,3.27284]
[1720378220885,2.85516196,2994.3,2994.2,3.27284]
[1720378221071,1.45789117,2994.3,2994.2,3.27284]
[1720378221271,2.85516196,2994.3,2994.2,3.27284]
[1720378222381,4.74618938,2994.5,2994.4,2.33769]
[1720378222693,7.36095407,2994.5,2994.4,3.27269]
[1720378225289,7.36095407,2994.5,2994.1,0.00625935]
[1720378225290,3.0,2994.2,2994.1,0.00625935]
[1720378225613,4.45823781,2994.2,2994.1,0.00625935]
[1720378225812,5.61556941,2994.2,2994.1,0.00625935]
[1720378226110,7.23882556,2994.2,2994.1,0.00625935]
[1720378226913,7.23870691,2994.2,2994.1,0.00625935]
[1720378227114,7.23870691,2994.2,2994.1,0.94125935]
[1720378227409,9.33249783,2994.2,2994.1,0.00625935]
[1720378227577,9.33249783,2994.2,2994.1,0.94125935]
[1720378227981,9.33249783,2994.2,2993.0,2.33878]
[1720378227982,3.0,2993.3,2993.0,2.33878]
[1720378228174,3.0,2993.3,2993.2,0.935]
[1720378228425,4.45839589,2993.3,2993.2,0.935]
[1720378228589,3.0,2993.3,2993.2,0.935]
[1720378231594,3.0,2993.3,2993.2,3.27363]
[1720378231796,3.0,2993.6,2993.3,2.33849]
[1720378231990,3.0,2993.6,2993.5,0.935]
[1720378232186,4.45833319,2993.6,2993.5,0.935]
[1720378232541,3.0,2993.6,2993.5,0.935]
[1720378236043,3.0,2994.0,2993.8,2.33811]
[1720378236207,3.0,2994.0,2993.9,3.506891]
[1720378236406,3.0,2994.3,2994.1,2.33789]
[1720378236638,3.0,2994.3,2994.2,0.935]
[1720378246343,3.0,2994.3,2993.8,2.33814]
[1720378246547,3.0,2994.3,2994.2,0.935]
[1720378246851,4.45801871,2994.3,2994.2,0.935]
[1720378248568,3.0,2994.3,2994.2,0.935]
[1720378248772,4.45802083,2994.3,2994.2,0.935]
[1720378249182,3.0,2993.9,2993.6,2.33826]
[1720378249338,3.0,2993.9,2993.8,0.935]
[1720378256266,3.0,2993.9,2993.5,2.3154]
[1720378256466,3.0,2993.9,2993.8,0.935]
[1720378261883,3.0,2993.9,2993.8,5.59126]
[1720378263905,4.3921086,2994.3,2994.0,2.33796]
[1720378264204,3.0,2994.3,2994.2,0.935]
[1720378264364,4.1570821,2994.3,2994.2,0.935]
[1720378264569,4.15708152,2994.3,2994.2,0.935]
[1720378264791,4.15708152,2994.3,2994.2,3.27285]
[1720378265170,4.15708152,2994.3,2994.2,5.65015]
[1720378265907,4.15707477,2994.3,2994.2,5.65015]
[1720378267613,3.0,2994.3,2994.2,5.65015]
[1720378267772,4.15706422,2994.3,2994.2,5.65015]
[1720378268711,3.0,2994.3,2994.2,5.65015]
[1720378272816,3.0,2994.3,2994.2,3.3123]
[1720378272817,4.15707999,2994.3,2994.2,3.3123]
[1720378273169,4.15707999,2994.3,2994.2,5.65015]
[1720378274206,4.15707658,2994.3,2994.2,5.65015]
[1720378274591,3.0,2994.3,2994.2,5.65015]
[1720378274785,4.15707476,2994.3,2994.2,5.65015]
[1720378275277,5.61499038,2994.3,2994.2,5.65015]
[1720378275479,5.61499118,2994.3,2994.2,5.65015]
[1720378276108,5.61499118,2994.3,2994.0,2.33799]
[1720378276314,3.0,2994.3,2994.0,2.33795]
[1720378276508,3.0,2994.3,2994.2,0.935]
[1720378276715,5.6150554,2994.3,2994.2,0.935]
[1720378277081,7.00793787,2994.3,2994.2,0.935]
[1720378277309,5.6150554,2994.3,2994.2,0.935]
[1720378277481,3.0,2994.3,2994.2,0.935]
[1720378277693,5.61500883,2994.3,2994.2,0.935]
[1720378277893,5.61500883,2994.3,2994.2,3.27285]
[1720378278112,4.45792528,2994.3,2994.2,3.27285]
[1720378278287,5.85080775,2994.3,2994.2,3.27285]
[1720378278699,4.39288247,2994.6,2994.3,2.33777]
[1720378278885,1.39288247,2994.6,2994.5,3.27261]
[1720378279232,1.39288247,2994.8,2994.7,2.4886]
[1720378279417,4.39288247,2994.9,2994.7,3.4236]
[1720378279584,4.39288247,2994.9,2994.7,3.27246]
[1720378279778,3.0,2994.9,2994.7,3.27246]
[1720378280007,4.39288247,2994.9,2994.7,3.27246]
[1720378280432,3.0,2994.9,2994.7,3.27246]
[1720378281127,3.0,2994.9,2994.7,3.2724]
[1720378281595,3.0,2994.9,2994.8,2.33738]
[1720378282110,3.0,2994.9,2994.8,5.484598]
[1720378282283,4.39288247,2995.2,2995.0,2.33717]
[1720378282484,3.0,2995.2,2995.1,0.935]
[1720378283103,3.0,2995.2,2995.1,3.27215]
[1720378290140,3.0,2995.2,2995.1,8.0675]
[1720378290437,3.0,2995.5,2995.3,2.33697]
[1720378290641,3.0,2995.5,2995.4,0.935]
[1720378300041,3.0,2995.5,2995.4,3.27191]
[1720378301447,1.39055667,2995.8,2995.4,3.27191]
[1720378301448,4.39055667,2995.8,2995.5,2.33677]
[1720378301669,4.39055667,2995.8,2995.7,0.935]
[1720378303537,4.39055667,2995.8,2995.7,3.832527]
[1720378304871,4.39055667,2995.8,2995.4,4.83097]
[1720378305176,4.39055667,2995.8,2995.7,0.935]
[1720378307862,3.0,2995.8,2995.5,2.33679]
[1720378308188,3.0,2995.8,2995.7,0.935]
[1720378311246,3.34918171,2995.8,2995.7,0.935]
[1720378311446,4.5057782,2995.8,2995.7,0.935]
[1720378313002,4.50578449,2995.8,2995.7,0.935]
[1720378314774,4.50579711,2995.8,2995.7,0.935]
[1720378318104,3.34918171,2995.8,2995.7,0.935]
[1720378318327,4.50578009,2995.8,2995.7,0.935]
[1720378318479,3.34918171,2995.8,2995.7,0.935]
[1720378318821,4.50579074,2995.8,2995.7,0.935]
[1720378321028,4.50578569,2995.8,2995.7,0.935]
[1720378324030,4.5057645,2995.8,2995.7,0.935]
[1720378324654,1.38670259,2996.0,2995.8,4.7923]
[1720378324792,1.38670259,2996.4,2996.0,4.67281]
[1720378324991,3.0,2996.5,2996.3,0.935]
[1720378325192,4.0,2996.4,2996.3,3.3907]
[1720378325436,3.0,2996.5,2996.3,3.3907]
[1720378328230,1.38852791,2996.7,2996.4,2.33613]
[1720378328443,3.0,2996.7,2996.6,0.935]
[1720378329545,4.86600422,2996.7,2996.6,0.935]
[1720378330004,3.0,2996.4,2996.0,4.6081]
[1720378330213,3.0,2996.4,2996.3,0.935]
[1720378330925,4.38852791,2996.7,2996.3,0.935]
[1720378331129,3.0,2996.7,2996.6,0.935]
[1720378332398,3.0,2996.7,2996.6,3.598088]
[1720378333563,3.0,2996.7,2996.6,1.262108]
[1720378333703,3.0,2996.7,2996.6,0.935]
[1720378335044,3.0,2996.7,2996.6,3.27098]
[1720378335261,3.0,2996.7,2996.5,4.60773]
[1720378335465,3.0,2996.7,2996.6,0.935]
[1720378341127,1.38600551,2997.2,2996.6,6.079873]
[1720378341322,2.07974692,2998.3,2997.1,7.35353]
[1720378341530,3.0,2998.8,2998.4,2.33452]
[1720378341750,3.0,2999.0,2998.7,0.935]
[1720378341958,3.0,2999.0,2998.3,2.54849747]
[1720378341959,3.0,2998.6,2998.2,2.33468]
[1720378342273,3.0,2998.9,2998.2,2.33468]
[1720378342421,3.0,2998.6,2998.2,2.33468]
[1720378342746,3.0,2998.6,2998.5,2.241]
[1720378344948,3.0,2998.6,2998.1,2.241]
[1720378345149,0.3,2998.5,2998.1,4.5758]
[1720378345339,0.3,2998.5,2998.1,2.241]
[1720378346768,0.3,2998.5,2998.1,4.57581]
[1720378346972,3.0,2998.6,2998.1,4.57581]
[1720378347149,3.0,2998.8,2998.5,2.241]
[1720378351746,3.0,2998.4,2998.1,2.241]
[1720378351948,3.0,2998.4,2997.5,5.33524]
[1720378352185,3.0,2998.4,2997.9,2.241]
[1720378352857,3.0,2998.4,2997.9,4.57596]
[1720378354492,3.0,2998.7,2998.3,2.241]
[1720378355769,3.0,2998.7,2998.4,2.33456]
[1720378359988,3.0,2998.7,2998.5,2.33449]
[1720378363053,3.0,2999.0,2998.6,2.33441]
[1720378363253,3.0,2999.0,2998.7,2.241]
[1720378363880,3.0,2999.0,2998.7,4.57533]
[1720378365619,3.0,2999.0,2998.7,2.241]
[1720378365788,0.33490205,2998.9,2998.7,2.241]
[1720378371179,1.15540568,2998.8,2998.7,2.241]
[1720378371403,3.0,2998.7,2998.3,4.57564]
[1720378372700,3.0,2998.7,2998.6,0.934]
[1720378372898,4.15544529,2998.7,2998.6,0.934]
[1720378373209,4.15544542,2998.7,2998.6,0.934]
[1720378375104,4.15544542,2998.7,2997.9,2.33492]
[1720378375105,3.0,2998.4,2997.9,2.33492]
[1720378375308,3.0,2998.4,2998.3,0.934]
[1720378375490,4.15555622,2998.4,2998.3,0.934]
[1720378376428,3.0,2998.4,2998.3,0.934]
[1720378376637,4.15561595,2998.4,2998.3,0.934]
[1720378376807,3.0,2998.4,2998.3,0.934]
[1720378377127,4.15560101,2998.4,2998.3,0.934]
[1720378378243,4.15560163,2998.4,2998.3,0.934]
[1720378379801,3.0,2998.4,2998.3,0.934]
[1720378380021,4.15560947,2998.4,2998.3,0.934]
[1720378381240,4.57117042,2998.4,2998.3,0.934]
[1720378381443,4.15560947,2998.4,2998.3,0.934]
[1720378382352,3.0,2998.4,2998.3,0.934]
[1720378382509,4.15558334,2998.4,2998.3,0.934]
[1720378385617,3.0,2998.4,2998.3,0.934]
[1720378385816,4.15557321,2998.4,2998.3,0.934]
[1720378386226,4.15557354,2998.4,2998.3,0.934]
[1720378386526,4.63316839,2998.4,2998.3,0.934]
[1720378387219,3.47759485,2998.4,2998.3,0.934]
[1720378387427,4.6331684,2998.4,2998.3,0.934]
[1720378388911,4.15557355,2998.4,2998.3,0.934]
[1720378389117,4.63305489,2998.4,2998.3,0.934]
[1720378391247,5.05988416,2998.4,2998.3,0.934]
[1720378392465,5.84275776,2998.4,2998.3,0.934]
[1720378392646,5.05951957,2998.4,2998.3,0.934]
[1720378395252,4.6326903,2998.4,2998.3,0.934]
[1720378395556,3.0,2998.4,2998.3,0.934]
[1720378395726,4.63260509,2998.4,2998.3,0.934]
[1720378395929,3.0,2998.4,2998.3,0.934]
[1720378396240,4.63263318,2998.4,2998.3,0.934]
[1720378397112,4.6326254,2998.4,2998.3,0.934]
[1720378398912,4.63257072,2998.4,2998.3,0.934]
[1720378402481,4.63191897,2998.4,2998.3,0.934]
[1720378405079,4.63191897,2998.4,2998.3,3.3593]
[1720378405249,4.15558576,2998.4,2998.3,5.69395]
[1720378405451,0.34887798,2998.7,2998.3,5.69395]
[1720378405452,3.34887798,2998.7,2998.3,8.831475]
[1720378405646,3.0,2998.7,2998.6,0.934]
[1720378405973,4.15544208,2998.7,2998.6,0.934]
[1720378406173,4.63191992,2998.7,2998.6,0.934]
[1720378408896,4.63181335,2998.7,2998.6,0.934]
[1720378409363,4.63181335,2998.7,2998.3,7.09455]
[1720378409563,3.0,2998.7,2998.6,0.934]
[1720378409762,4.63181589,2998.7,2998.6,0.934]
[1720378412082,3.0,2998.7,2998.6,0.934]
[1720378412414,4.63188963,2998.7,2998.6,0.934]
[1720378413099,3.0,2998.7,2998.6,0.934]
[1720378413405,4.63173148,2998.7,2998.6,0.934]
[1720378415576,3.47602523,2998.7,2998.6,0.934]
[1720378415808,4.63144835,2998.7,2998.6,0.934]
[1720378416022,3.0,2998.7,2998.6,0.934]
[1720378416312,4.63146796,2998.7,2998.6,0.934]
[1720378417176,4.6313059,2998.7,2998.6,0.934]
[1720378418923,3.0,2998.7,2998.6,0.934]
[1720378419083,4.63145018,2998.7,2998.6,0.934]
[1720378420102,4.63145018,2998.7,2998.6,0.931]
[1720378422322,3.0,2998.7,2998.6,0.931]
[1720378422488,4.63140766,2998.7,2998.6,0.931]
[1720378422882,4.63140766,2998.7,2998.6,0.928]
[1720378424330,5.09454843,2998.7,2998.6,0.928]
[1720378424987,3.0,2998.4,2998.1,2.33476]
[1720378425219,0.47591415,2998.3,2997.9,2.3349]
[1720378425387,3.92208304,2998.3,2997.7,2.4807]
[1720378425588,3.0,2998.1,2997.5,2.33525]
[1720378425785,3.0,2998.1,2996.9,2.33572]
[1720378425786,3.0,2997.7,2997.0,2.4807]
[1720378426035,3.0,2997.3,2997.0,2.4807]
[1720378426197,3.0,2997.3,2997.2,0.934]
[1720378426400,4.63202082,2997.3,2997.2,0.934]
[1720378426599,3.47603277,2997.3,2997.2,0.934]
[1720378427504,3.47603277,2997.3,2996.7,4.81654]
[1720378427505,3.47597578,2997.3,2996.7,4.81654]
[1720378427701,3.0,2997.3,2997.2,0.934]
[1720378427931,3.47591241,2997.3,2997.2,0.934]
[1720378428634,3.0,2997.3,2997.2,0.934]
[1720378429323,3.0,2997.6,2997.2,0.934]
[1720378429529,3.0,2997.9,2997.5,0.934]
[1720378429845,3.0,2998.0,2997.8,0.934]
[1720378429996,4.0,2997.9,2997.5,2.4807]
[1720378430197,4.0,2997.9,2997.8,0.934]
[1720378430596,3.0,2998.2,2997.8,2.242]
[1720378431427,3.0,2998.3,2997.8,2.242]
[1720378431594,3.47591703,2998.2,2997.8,2.242]
[1720378431938,3.0,2998.2,2997.8,2.242]
[1720378443857,3.33,2998.5,2997.8,2.242]
[1720378443858,6.33,2998.5,2997.8,2.76642591]
[1720378444027,3.0,2998.5,2998.3,2.242]
[1720378452571,3.0,2998.5,2998.1,2.33478]
[1720378452867,3.0,2998.5,2998.4,0.934]
[1720378453672,4.15554786,2998.5,2998.4,0.934]
[1720378453873,3.0,2998.5,2998.4,0.934]
[1720378454740,4.15553621,2998.5,2998.4,0.934]
[1720378454949,3.0,2998.5,2998.4,0.934]
[1720378455281,4.15553572,2998.5,2998.4,0.934]
[1720378455770,4.15553572,2998.5,2998.1,2.33478]
[1720378455934,3.0,2998.5,2998.4,0.934]
[1720378456271,4.6318598,2998.5,2998.4,0.934]
[1720378456949,4.15555493,2998.5,2998.4,0.934]
[1720378457872,3.0,2998.5,2998.4,0.934]
[1720378458031,4.15551542,2998.5,2998.4,0.934]
[1720378458532,4.15551542,2998.5,2998.1,2.33476]
[1720378458533,4.63179935,2998.5,2998.0,2.33484]
[1720378458739,3.0,2998.5,2998.4,0.934]
[1720378458959,4.63186425,2998.5,2998.4,0.934]
[1720378459468,4.15555783,2998.5,2998.4,0.934]
[1720378459972,4.63184985,2998.5,2998.4,0.934]
[1720378461135,4.63182549,2998.5,2998.4,0.934]
[1720378464486,3.0,2998.5,2998.4,0.934]
[1720378464779,3.0,2998.5,2998.1,2.3348]
[1720378464780,4.63173621,2998.5,2998.1,2.3348]
[1720378464954,3.0,2998.5,2998.4,0.934]
[1720378465158,4.63180271,2998.5,2998.4,0.934]
[1720378466569,3.0,2998.2,2998.0,2.33482]
[1720378466744,3.0,2998.2,2998.1,0.934]
[1720378468486,4.15558919,2998.2,2998.1,0.934]
[1720378471083,4.15558869,2998.2,2998.1,0.934]
[1720378473230,3.0,2998.2,2998.1,0.934]
[1720378473393,4.15559703,2998.2,2998.1,3.2127]
[1720378473588,4.15559703,2998.2,2998.1,3.77412863]
[1720378474404,3.0,2998.2,2998.1,3.77412863]
[1720378474734,4.15557776,2998.2,2998.1,3.77412863]
[1720378474906,5.5400183,2999.1,2998.1,3.77412863]
[1720378474907,3.0,2998.5,2998.1,3.77412863]
[1720378475107,1.63179051,2998.4,2998.1,5.24163983]
[1720378475316,3.0,2998.8,2998.3,0.934]
[1720378475517,1.63164736,2998.7,2998.1,5.24163983]
[1720378475738,1.63164736,2998.6,2998.1,5.24163983]
[1720378475918,1.63164736,2998.5,2998.1,5.24163983]
[1720378476119,3.0,2998.8,2998.4,0.934]
[1720378476319,1.63163817,2998.7,2998.3,2.33464]
[1720378476497,1.15544785,2998.6,2998.5,2.2787]
[1720378476698,3.0,2999.1,2998.6,2.33442]
[1720378476934,1.63151174,2999.0,2998.6,2.33442]
[1720378477091,1.63151174,2998.9,2998.7,2.33433]
[1720378477296,1.63151174,2998.8,2998.7,2.33433]
[1720378477531,1.63151174,2998.8,2998.7,3.26833]
[1720378477696,0.4761567,2998.8,2998.7,3.26833]
[1720378477896,0.47604982,2999.0,2998.8,2.33426]
[1720378478110,1.63132888,2998.9,2998.8,2.33426]
[1720378478311,1.63132888,2998.9,2998.8,3.26826]
[1720378478508,1.63132888,2998.9,2998.8,0.934]
[1720378479623,0.47601081,2998.9,2998.8,0.934]
[1720378479820,0.47601081,2999.0,2998.8,0.934]
[1720378480022,0.47601081,2999.0,2998.9,0.934]
[1720378480209,1.63134018,2999.0,2998.9,0.934]
[1720378480933,3.0,2998.8,2998.5,2.2787]
[1720378481136,3.0,2998.8,2998.7,0.934]
[1720378481301,3.47605856,2998.8,2998.7,0.934]
[1720378481502,3.0,2998.8,2998.7,0.934]
[1720378481729,3.47605495,2998.8,2998.7,0.934]
[1720378484444,3.47598032,2998.8,2998.7,0.934]
[1720378484802,3.0,2998.8,2998.7,0.934]
[1720378485004,0.47597967,2998.8,2998.7,0.934]
[1720378485336,3.0,2999.1,2998.8,2.4909]
[1720378485637,0.47595643,2999.0,2998.8,2.4909]
[1720378485938,3.0,2999.1,2998.9,0.934]
[1720378486120,0.47591984,2999.0,2998.9,0.934]
[1720378486317,3.0,2999.1,2998.9,0.934]
[1720378486642,0.47583389,2999.0,2998.9,0.934]
[1720378487938,0.47589363,2999.0,2998.9,0.934]
[1720378489707,1.63125757,2999.0,2998.9,0.934]
[1720378490098,1.63125757,2999.0,2998.5,2.4909]
[1720378490303,0.47589363,2998.9,2998.4,2.33451]
[1720378490539,0.47589363,2998.9,2998.8,0.934]
[1720378490743,1.63129778,2998.9,2998.8,0.934]
[1720378491040,0.47589245,2998.9,2998.8,0.934]
[1720378491419,0.47589245,2999.0,2998.8,0.934]
[1720378491618,0.47589245,2999.0,2998.9,0.934]
[1720378491941,1.63126038,2999.0,2998.9,0.934]
[1720378492141,0.47592043,2999.0,2998.9,0.934]
[1720378492331,3.0,2999.1,2998.9,0.934]
[1720378495332,3.0,2999.1,2999.0,0.934]
[1720378498162,3.0,2999.1,2998.7,2.4909]
[1720378498360,3.0,2999.1,2999.0,0.934]
[1720378498518,4.63120559,2999.1,2999.0,0.934]
[1720378499020,3.0,2999.1,2999.0,0.934]
[1720378500595,3.0,2999.4,2999.0,0.934]
[1720378500728,0.4759999,2999.3,2998.9,2.33417]
[1720378501064,3.0,2999.7,2999.2,3.3654]
[1720378501274,3.0,2999.7,2999.2,4.7653]
[1720378501468,3.0,2999.7,2999.6,0.934]
[1720378501669,4.6310835,2999.7,2999.6,0.934]
[1720378501891,4.15506275,2999.7,2999.6,0.934]
[1720378502191,4.50422097,2999.7,2999.6,0.934]
[1720378502878,4.98018526,2999.7,2999.6,0.934]
[1720378503046,4.50422097,2999.7,2999.6,0.934]
[1720378503247,4.50423873,2999.7,2999.6,0.934]
[1720378503647,4.50424769,2999.7,2999.6,0.934]
[1720378504545,3.34915822,2999.7,2999.6,3.3654]
[1720378504747,0.34915822,2999.7,2999.6,3.3654]
[1720378510378,0.34915822,2999.7,2999.6,6.268954]
[1720378515977,0.34915822,2999.7,2999.6,8.602594]
[1720378519118,5.3067,3001.0,3000.3,2.33309]
[1720378519293,1.63041459,3000.9,3000.3,2.33306]
[1720378519627,3.0,3001.0,3000.8,0.934]
[1720378519782,4.0,3000.9,3000.8,0.934]
[1720378520382,4.0,3000.9,3000.3,2.33305]
[1720378520584,3.0,3001.0,3000.8,0.934]
[1720378520814,3.33490348,3001.0,3000.8,0.934]
[1720378525932,3.33490348,3001.0,3000.3,4.60838]
[1720378525933,3.0,3000.6,3000.3,2.2753]
[1720378526223,3.0,3000.6,3000.5,0.934]
[1720378529434,4.15477146,3000.6,3000.5,0.934]
[1720378530547,4.15475172,3000.6,3000.5,0.934]
[1720378530713,3.0,3000.6,3000.5,0.934]
[1720378533558,5.7984,3000.6,3000.5,0.934]
[1720378533698,6.9531985,3000.6,3000.5,0.934]
[1720378533905,5.7984,3000.6,3000.5,0.934]
[1720378534154,4.45486494,3000.6,2999.8,2.33347]
[1720378534441,4.45486494,3000.6,2999.7,2.2753]
[1720378534442,3.0,3000.6,3000.5,0.934]
[1720378534610,4.15476974,3000.6,3000.5,0.934]
[1720378534809,6.0,3001.0,3000.5,0.934]
[1720378535008,1.15470234,3000.9,3000.3,2.2753]
[1720378535346,1.15470234,3000.8,3000.3,2.2753]
[1720378535505,0.34906905,3000.9,3000.7,0.934]
[1720378535701,1.1546851,3000.8,3000.7,0.934]